bitfinex/quotes_SOLUSD_20240912
["timestamp","ask_amount","ask_price","bid_price","bid_amount"]
[1726107153520,6.6431,135.48,135.41,16.6156]
[1726107153719,16.6013,135.51,135.43,6.6454]
[1726107154329,6.6426,135.49,135.44,6.645]
[1726107154527,6.6423,135.5,135.44,6.645]
[1726107154756,20.0,135.49,135.44,6.645]
[1726107154939,20.0,135.49,135.42,0.2991729]
[1726107155141,16.6013,135.51,135.44,16.6122]
[1726107155441,16.6013,135.51,135.46,6.6439]
[1726107155643,16.6013,135.51,135.44,16.6122]
[1726107155832,16.6013,135.51,135.47,16.608]
[1726107156232,16.6013,135.51,135.49,6.6425]
[1726107157556,16.6013,135.51,135.43,76.38937512]
[1726107157849,16.6013,135.51,135.46,16.6098]
[1726107158428,16.6013,135.51,135.47,6.6433]
[1726107159045,16.6013,135.51,135.46,59.77677512]
[1726107159357,16.6013,135.51,135.49,16.606]
[1726107159543,16.6013,135.51,135.5,6.642]
[1726107160229,16.6013,135.51,135.49,16.606]
[1726107160837,16.6013,135.51,135.49,23.2485]
[1726107161047,16.6013,135.51,135.5,6.642]
[1726107161245,16.6013,135.51,135.49,23.2485]
[1726107161451,16.6013,135.51,135.47,6.643]
[1726107161634,23.2428,135.51,135.46,6.6439]
[1726107162027,16.6013,135.51,135.45,16.6103]
[1726107162235,6.6422,135.5,135.45,16.6103]
[1726107162762,6.6422,135.5,135.45,23.2546]
[1726107163066,16.6013,135.51,135.45,16.6103]
[1726107163239,23.2429,135.51,135.46,6.644]
[1726107163860,23.2429,135.51,135.45,23.2548]
[1726107164577,23.2429,135.51,135.45,22.7548]
[1726107164761,16.6013,135.51,135.45,16.1103]
[1726107165137,16.6013,135.51,135.46,6.644]
[1726107165339,16.6013,135.51,135.45,16.1103]
[1726107165340,16.6013,135.51,135.45,22.7543]
[1726107165751,16.6013,135.51,135.46,6.6439]
[1726107166159,16.6013,135.51,135.48,6.6425]
[1726107166365,16.6013,135.51,135.5,6.642]
[1726107167098,7.6459091,135.55,135.54,23.2403]
[1726107167370,0.2235464,135.62,135.59,6.6371]
[1726107167671,7.65184003,135.6,135.57,16.5964]
[1726107167840,7.65184003,135.6,135.57,23.235]
[1726107168039,7.65184003,135.6,135.58,6.6379]
[1726107168460,7.65184003,135.6,135.57,23.235]
[1726107168855,7.65184003,135.6,135.59,6.6376]
[1726107170363,0.2235464,135.62,135.61,6.6366]
[1726107171058,0.2235464,135.62,135.6,23.2292]
[1726107172070,0.2235464,135.62,135.58,6.6378]
[1726107172662,0.2235464,135.62,135.56,16.5967]
[1726107173393,0.2235464,135.62,135.58,6.638]
[1726107173685,0.2235464,135.62,135.56,16.5967]
[1726107173686,0.2235464,135.62,135.61,6.6366]
[1726107175253,0.2235464,135.62,135.61,8.10816662]
[1726107176066,0.2235464,135.62,135.61,6.6366]
[1726107177371,0.2235464,135.62,135.59,16.5932]
[1726107177570,0.2235464,135.62,135.6,6.6369]
[1726107177975,0.2235464,135.62,135.54,92.97557512]
[1726107178375,0.2235464,135.62,135.58,16.595]
[1726107178584,0.2235464,135.62,135.54,92.97557512]
[1726107178585,0.2235464,135.62,135.57,6.6385]
[1726107178890,0.2235464,135.62,135.58,6.6379]
[1726107179682,6.8597464,135.62,135.57,6.6386]
[1726107180368,0.2235464,135.62,135.57,16.5954]
[1726107180586,0.2235464,135.62,135.6,6.6367]
[1726107180775,0.2235464,135.62,135.57,59.77677512]
[1726107180776,0.2235464,135.62,135.61,6.6366]
[1726107181099,0.2235464,135.62,135.59,16.5931]
[1726107181266,0.2235464,135.62,135.6,6.637]
[1726107181674,0.2235464,135.62,135.59,23.2306]
[1726107182290,0.2235464,135.62,135.56,33.1948]
[1726107182495,0.2235464,135.62,135.61,6.6366]
[1726107182795,7.64831342,135.68,135.67,6.6337]
[1726107182974,7.64831342,135.68,135.67,16.5843]
[1726107183515,7.64831342,135.68,135.67,23.218]
[1726107184405,7.64831342,135.68,135.63,16.5881]
[1726107184581,7.64831342,135.68,135.63,23.2237]
[1726107184791,7.64831342,135.68,135.63,16.5881]
[1726107184979,14.28171342,135.68,135.63,16.5881]
[1726107185370,6.6337,135.67,135.63,16.5881]
[1726107185575,7.64831342,135.68,135.6,76.36957512]
[1726107185885,7.64831342,135.68,135.63,16.5886]
[1726107186093,7.64831342,135.68,135.65,6.6347]
[1726107186777,7.64831342,135.68,135.64,6.6351]
[1726107187705,7.64831342,135.68,135.65,6.6345]
[1726107188070,7.64831342,135.68,135.6,76.36937512]
[1726107188406,6.6345,135.66,135.61,6.6366]
[1726107188595,6.5269,135.66,135.59,6.6374]
[1726107188911,6.6356,135.64,135.58,6.6381]
[1726107189139,27.64554563,135.65,135.58,6.6381]
[1726107189595,40.076484,135.64,135.57,16.5964]
[1726107189692,40.076484,135.64,135.55,6.6395]
[1726107189693,6.6367,135.61,135.55,6.6395]
[1726107190687,6.6366,135.61,135.55,6.6395]
[1726107191212,23.776884,135.63,135.54,6.64]
[1726107191390,23.776884,135.61,135.52,16.6015]
[1726107192126,23.776884,135.61,135.53,6.6402]
[1726107192403,74.23264563,135.65,135.51,59.77677512]
[1726107192404,7.64554563,135.65,135.51,59.77677512]
[1726107192611,7.64554563,135.65,135.57,59.77677512]
[1726107192995,6.5269,135.66,135.62,6.636]
[1726107193405,6.5269,135.66,135.6,76.36947512]
[1726107193909,6.5269,135.66,135.62,6.6357]
[1726107194086,6.5269,135.66,135.63,6.6354]
[1726107194591,0.5227193,135.7,135.61,23.776884]
[1726107194592,6.7385193,135.7,135.61,23.776884]
[1726107194785,6.7385193,135.7,135.65,16.5856]
[1726107194987,14.378176,135.7,135.67,6.6336]
[1726107195201,14.378176,135.7,135.65,16.5856]
[1726107195409,14.378176,135.7,135.67,6.6337]
[1726107195615,14.378176,135.7,135.68,6.6332]
[1726107195811,14.378176,135.7,135.67,6.6337]
[1726107195993,14.378176,135.7,135.65,16.5856]
[1726107196187,8.162376,135.7,135.65,16.5856]
[1726107196893,8.162376,135.7,135.67,6.6337]
[1726107197090,8.162376,135.7,135.66,6.6342]
[1726107197292,8.162376,135.7,135.65,16.5856]
[1726107197601,6.6332,135.68,135.63,6.6356]
[1726107197927,23.776884,135.66,135.57,16.5954]
[1726107198302,6.038,135.67,135.57,16.5954]
[1726107198716,6.6355,135.64,135.58,6.6376]
[1726107199196,6.6357,135.63,135.58,6.6376]
[1726107199619,6.6364,135.62,135.57,16.5954]
[1726107200023,6.6364,135.62,135.57,23.2339]
[1726107200209,6.6364,135.62,135.58,1.47489066]
[1726107200401,6.6364,135.62,135.52,33.2042]
[1726107200402,23.776884,135.64,135.53,16.6004]
[1726107200602,23.776884,135.64,135.51,1.68674952]
[1726107200603,6.959526,135.64,135.56,16.5973]
[1726107200820,6.959526,135.64,135.58,6.6378]
[1726107200821,0.323926,135.64,135.58,6.6378]
[1726107201133,0.323926,135.64,135.59,6.6375]
[1726107201417,0.323926,135.64,135.61,6.6366]
[1726107201604,0.323926,135.64,135.59,16.5931]
[1726107201794,0.323926,135.64,135.6,8.11140009]
[1726107201997,0.323926,135.64,135.6,6.6371]
[1726107202421,0.323926,135.64,135.59,23.2306]
[1726107203341,0.323926,135.64,135.6,8.11058514]
[1726107203500,0.323926,135.64,135.6,6.6369]
[1726107203901,0.323926,135.64,135.62,6.636]
[1726107204330,0.323926,135.64,135.59,16.5931]
[1726107204526,0.323926,135.64,135.6,1.47438962]
[1726107204822,0.323926,135.64,135.61,1.47438946]
[1726107204999,0.323926,135.64,135.62,6.6358]
[1726107205202,0.323926,135.64,135.6,6.6367]
[1726107205525,0.323926,135.64,135.62,16.5898]
[1726107205708,0.323926,135.64,135.63,30.412584]
[1726107206104,0.323926,135.64,135.63,6.6357]
[1726107206621,6.959326,135.64,135.53,16.6168]
[1726107206912,6.959326,135.64,135.62,6.636]
[1726107206913,0.323926,135.64,135.62,6.636]
[1726107207214,0.323926,135.64,135.61,6.6365]
[1726107208118,0.323926,135.64,135.6,16.5927]
[1726107210225,0.323926,135.64,135.6,18.06519477]
[1726107210429,0.323926,135.64,135.56,59.77677512]
[1726107210430,6.959126,135.64,135.56,76.37337512]
[1726107210629,6.959126,135.64,135.57,1.47206034]
[1726107210820,6.959126,135.64,135.58,8.10956577]
[1726107211127,6.959126,135.64,135.58,6.6376]
[1726107211325,6.959126,135.64,135.59,1.47138937]
[1726107211838,0.323926,135.64,135.62,6.636]
[1726107212207,0.323926,135.64,135.63,16.5892]
[1726107212422,0.334014,135.69,135.62,59.77677512]
[1726107212423,0.334014,135.69,135.68,6.6332]
[1726107212814,0.334014,135.69,135.68,23.2163]
[1726107213324,0.334014,135.69,135.68,24.6883544]
[1726107213531,0.334014,135.69,135.68,23.2163]
[1726107213913,0.334014,135.69,135.68,24.68772292]
[1726107214111,0.334014,135.69,135.68,23.2163]
[1726107215931,0.334014,135.69,135.68,48.46415625]
[1726107216236,0.334014,135.69,135.68,48.46414815]
[1726107216533,0.334014,135.69,135.68,46.993184]
[1726107216739,0.334014,135.69,135.68,48.46421809]
[1726107217163,0.334014,135.74,135.73,6.6308]
[1726107217443,0.334014,135.79,135.77,23.776884]
[1726107217621,0.334014,135.79,135.78,90.18195912]
[1726107220246,0.334014,135.79,135.78,91.6540876]
[1726107220416,0.334014,135.79,135.78,90.18195912]
[1726107221113,0.334014,135.79,135.78,91.65420326]
[1726107223444,0.334014,135.79,135.78,67.87731926]
[1726107223735,0.334014,135.79,135.78,66.40507512]
[1726107223942,0.334014,135.79,135.77,6.6288]
[1726107224112,0.334014,135.79,135.78,7.55326747]
[1726107224311,0.334014,135.79,135.78,66.40507512]
[1726107225340,0.334014,135.79,135.78,90.18195912]
[1726107226533,0.334014,135.79,135.78,66.40507512]
[1726107226728,0.334014,135.79,135.77,6.6288]
[1726107226923,0.334014,135.79,135.77,6.6283]
[1726107227338,0.334014,135.79,135.77,8.09934695]
[1726107227847,0.334014,135.79,135.77,6.6283]
[1726107228044,0.334014,135.79,135.77,8.09939635]
[1726107228757,0.334014,135.79,135.77,6.6283]
[1726107229363,0.334014,135.79,135.78,8.10087544]
[1726107230646,0.334014,135.84,135.83,6.6259]
[1726107230949,0.334014,135.84,135.83,31.87450517]
[1726107231143,0.334014,135.84,135.83,30.402784]
[1726107231345,0.334014,135.84,135.83,31.87403967]
[1726107231845,7.62813217,135.91,135.83,25.24824877]
[1726107232050,0.4096092,135.87,135.86,6.6244]
[1726107232251,0.4096092,135.87,135.86,8.09543986]
[1726107232554,0.4096092,135.87,135.86,48.43375946]
[1726107232855,0.4106902,135.93,135.9,6.622]
[1726107233033,0.4106902,135.93,135.91,1.47114596]
[1726107233245,0.4106902,135.93,135.89,16.5565]
[1726107234455,7.0316902,135.93,135.89,16.5565]
[1726107234753,0.4106902,135.93,135.9,1.47033422]
[1726107235259,7.0316902,135.93,135.89,16.5565]
[1726107235632,7.0316902,135.93,135.87,6.6239]
[1726107236049,6.6215,135.92,135.87,6.6239]
[1726107236363,6.2413,135.92,135.85,16.5612]
[1726107236533,6.2413,135.92,135.81,33.1331]
[1726107236534,6.624,135.87,135.81,23.1926]
[1726107237349,15.7195,135.91,135.79,6.6274]
[1726107237350,6.6248,135.86,135.79,6.6274]
[1726107237526,23.776884,135.89,135.79,6.6274]
[1726107237729,16.5563,135.9,135.79,6.6274]
[1726107237730,6.6244,135.86,135.8,6.6269]
[1726107238040,16.5563,135.9,135.81,6.6268]
[1726107238041,6.6243,135.87,135.81,6.6268]
[1726107238233,23.776884,135.89,135.8,66.40407512]
[1726107238431,6.6251,135.85,135.8,59.77677512]
[1726107238646,6.6244,135.87,135.8,59.77677512]
[1726107238946,6.6245,135.86,135.8,59.77677512]
[1726107239253,15.7195,135.91,135.83,6.6259]
[1726107239443,15.7195,135.91,135.82,16.5659]
[1726107239444,15.7195,135.91,135.84,6.6253]
[1726107239631,15.7195,135.91,135.85,6.6249]
[1726107239828,7.0400902,135.93,135.86,59.77677512]
[1726107240036,7.0400902,135.93,135.83,1.47164258]
[1726107240037,0.4106902,135.93,135.92,6.6215]
[1726107240644,0.4106902,135.93,135.91,16.5547]
[1726107241231,0.4106902,135.93,135.91,18.0258092]
[1726107241552,0.4106902,135.93,135.91,16.5547]
[1726107242360,0.4106902,135.93,135.88,6.623]
[1726107242656,0.4106902,135.93,135.87,76.33577512]
[1726107242657,0.4106902,135.93,135.87,16.559]
[1726107243036,6.6221,135.91,135.85,6.6245]
[1726107243247,0.4106902,135.93,135.86,6.6244]
[1726107243248,6.6215,135.92,135.86,6.6244]
[1726107243464,0.4106902,135.93,135.84,6.625]
[1726107243465,6.6225,135.9,135.84,6.625]
[1726107244033,21.6961,135.91,135.85,8.09651847]
[1726107244231,6.6225,135.9,135.84,6.6252]
[1726107244429,6.623,135.89,135.83,16.5638]
[1726107244656,6.6235,135.88,135.83,16.5638]
[1726107245241,23.776884,135.9,135.79,16.5688]
[1726107245665,0.4106902,135.93,135.84,59.77677512]
[1726107245957,6.6221,135.91,135.85,23.1861]
[1726107246157,0.4106902,135.93,135.85,16.5615]
[1726107246355,6.622,135.91,135.86,6.6244]
[1726107246660,6.6215,135.92,135.86,6.6244]
[1726107246830,6.6215,135.92,135.87,8.09528073]
[1726107247193,6.6215,135.92,135.88,1.47149296]
[1726107248361,6.6215,135.92,135.88,1.4715147]
[1726107248549,0.4106902,135.93,135.88,1.4715147]
[1726107248754,0.4106902,135.93,135.89,6.6229]
[1726107248978,0.4106902,135.93,135.9,1.47130583]
[1726107249456,0.4106902,135.93,135.89,1.47128997]
[1726107249661,0.4106902,135.93,135.88,23.1819]
[1726107250047,0.4106902,135.93,135.9,6.6224]
[1726107250275,0.4106902,135.93,135.91,6.6219]
[1726107250837,0.4106902,135.93,135.89,6.6225]
[1726107251263,0.4106902,135.93,135.88,16.5585]
[1726107251264,0.4106902,135.93,135.91,6.6218]
[1726107251439,0.4106902,135.93,135.9,6.6224]
[1726107251643,0.4106902,135.93,135.85,33.1224]
[1726107251644,0.4106902,135.93,135.92,6.6215]
[1726107252967,0.4106902,135.93,135.91,16.555]
[1726107253554,0.4106902,135.93,135.91,23.1768]
[1726107253762,0.4106902,135.93,135.92,1.47030759]
[1726107254863,52.2340742,135.93,135.91,1.47030759]
[1726107255077,6.6234,135.89,135.83,6.6259]
[1726107255264,6.6236,135.88,135.82,66.40317512]
[1726107255454,23.776884,135.92,135.81,16.5661]
[1726107255772,23.776884,135.9,135.81,16.5661]
[1726107255972,6.6249,135.86,135.81,16.5661]
[1726107257075,13.2521,135.85,135.8,1.68314748]
[1726107257448,6.6254,135.84,135.8,1.68314748]
[1726107257760,22.5402,135.85,135.8,1.68314748]
[1726107258068,6.6269,135.81,135.8,1.68314748]
[1726107259158,6.6264,135.82,135.8,1.68314748]
[1726107259451,39.1025,135.85,135.8,1.68314748]
[1726107259452,30.403784,135.81,135.8,1.68314748]
[1726107260382,6.6288,135.77,135.71,0.4106902]
[1726107261155,6.6295,135.76,135.71,0.4106902]
[1726107261377,6.36,135.8,135.71,0.4106902]
[1726107261378,6.63,135.75,135.71,0.4106902]
[1726107263561,6.6304,135.74,135.71,0.4106902]
[1726107267855,6.6308,135.73,135.71,0.4106902]
[1726107268768,6.4348,135.72,135.71,0.4106902]
[1726107268959,13.066,135.72,135.71,0.4106902]
[1726107271263,6.4348,135.72,135.71,0.4106902]
[1726107272357,13.066,135.72,135.71,0.4106902]
[1726107272759,20.69771255,135.72,135.71,0.4106902]
[1726107282206,64.47459655,135.72,135.71,0.4106902]
[1726107283300,64.47459655,135.72,135.64,0.4106902]
[1726107283501,6.6344,135.66,135.64,0.4106902]
[1726107283798,6.6338,135.67,135.64,0.4106902]
[1726107283986,6.6343,135.66,135.64,0.4106902]
[1726107284184,14.26590654,135.66,135.64,0.4106902]
[1726107284788,6.6347,135.65,135.64,0.4106902]
[1726107284974,7.63160654,135.66,135.64,0.4106902]
[1726107285704,6.6347,135.65,135.64,0.4106902]
[1726107285917,36.709084,135.65,135.64,0.4106902]
[1726107286076,52.456584,135.65,135.64,0.4106902]
[1726107287101,72.456584,135.65,135.64,0.4106902]
[1726107288411,48.6797,135.65,135.64,0.4106902]
[1726107288913,42.045,135.65,135.64,0.4106902]
[1726107289097,7.63160654,135.66,135.64,0.4106902]
[1726107289285,14.26590654,135.66,135.64,0.4106902]
[1726107291687,6.6347,135.65,135.64,0.4106902]
[1726107292238,14.26580654,135.66,135.64,0.4106902]
[1726107292704,6.6347,135.65,135.64,0.4106902]
[1726107293482,6.6347,135.65,135.63,0.5130397]
[1726107295381,7.63160654,135.66,135.63,0.5130397]
[1726107296315,7.63160654,135.66,135.64,38.7262]
[1726107296522,6.6313,135.72,135.67,6.6337]
[1726107296738,14.26141243,135.71,135.64,38.7262]
[1726107297015,14.26141243,135.71,135.65,6.6347]
[1726107297224,7.62921243,135.71,135.64,16.587]
[1726107297396,6.6328,135.69,135.64,23.222]
[1726107297717,7.62921243,135.71,135.64,16.587]
[1726107297886,20.0,135.7,135.64,16.587]
[1726107298415,20.0,135.7,135.66,6.6342]
[1726107299213,20.0,135.7,135.64,16.587]
[1726107299906,20.0,135.7,135.63,0.5130397]
[1726107300101,6.3948,135.69,135.63,0.5130397]
[1726107300793,6.6337,135.67,135.63,0.5130397]
[1726107300996,6.3948,135.69,135.63,0.5130397]
[1726107301519,6.6342,135.66,135.63,0.5130397]
[1726107303723,23.776884,135.68,135.63,0.5130397]
[1726107303920,6.6342,135.66,135.63,0.5130397]
[1726107304925,6.6352,135.64,135.63,0.5130397]
[1726107305427,6.6347,135.65,135.63,0.5130397]
[1726107306613,30.410184,135.68,135.63,7.1486397]
[1726107306838,13.0276,135.69,135.64,6.6351]
[1726107307123,7.62496901,135.68,135.66,16.5846]
[1726107308839,6.3592,135.74,135.68,6.6329]
[1726107308840,6.6312,135.73,135.68,6.6329]
[1726107309033,14.25853597,135.73,135.68,6.6329]
[1726107310205,7.62733597,135.73,135.67,1.2876885]
[1726107310405,7.62733597,135.73,135.71,6.6317]
[1726107310702,7.62733597,135.73,135.69,6.6327]
[1726107310912,7.62733597,135.73,135.7,6.6322]
[1726107311108,7.62733597,135.73,135.71,1.2866448]
[1726107311303,6.5016,135.78,135.67,1.28664479]
[1726107311625,7.62556707,135.77,135.68,1.29074399]
[1726107312398,7.62556707,135.77,135.72,6.6312]
[1726107313419,23.776884,135.76,135.66,43.01263601]
[1726107313618,23.776884,135.76,135.66,6.4263656]
[1726107313823,6.6298,135.75,135.7,6.6322]
[1726107314122,14.25486707,135.77,135.72,6.6312]
[1726107314327,7.62556707,135.77,135.72,6.6312]
[1726107314628,7.62556707,135.77,135.74,6.6302]
[1726107314829,7.62556707,135.77,135.75,6.6296]
[1726107315004,6.6268,135.82,135.76,6.6293]
[1726107315202,7.62521949,135.81,135.76,6.6293]
[1726107315516,7.62521949,135.81,135.78,6.6282]
[1726107315700,7.62521949,135.81,135.76,16.5729]
[1726107316006,7.62521949,135.81,135.77,6.6285]
[1726107316205,7.62521949,135.81,135.76,16.5729]
[1726107316206,7.62521949,135.81,135.78,8.09993018]
[1726107316512,6.6269,135.81,135.76,16.5729]
[1726107316712,6.8410085,135.83,135.77,6.6287]
[1726107316910,0.2147085,135.83,135.78,1.47156893]
[1726107317404,0.2147085,135.83,135.79,6.6277]
[1726107317929,0.2147085,135.83,135.82,6.6264]
[1726107318222,0.2147085,135.83,135.81,16.5661]
[1726107318427,0.2147085,135.83,135.78,16.3142]
[1726107318636,0.2147085,135.83,135.77,16.571]
[1726107319143,0.2147085,135.83,135.8,6.6273]
[1726107319314,0.2147085,135.83,135.78,6.6283]
[1726107319914,6.8406085,135.83,135.78,6.6283]
[1726107320216,0.2147085,135.83,135.78,6.6283]
[1726107320627,0.2147085,135.83,135.8,6.6273]
[1726107320928,0.2147085,135.83,135.77,16.571]
[1726107321120,0.2147085,135.83,135.79,6.6278]
[1726107321521,0.2147085,135.83,135.81,6.6268]
[1726107321936,0.2147085,135.83,135.82,24.66366366]
[1726107322122,0.2147085,135.83,135.82,23.1924]
[1726107324039,0.2147085,135.83,135.78,16.5697]
[1726107324224,0.2147085,135.83,135.79,6.6278]
[1726107324818,0.2147085,135.83,135.81,16.5672]
[1726107325015,0.2147085,135.83,135.82,6.6264]
[1726107325221,0.2147085,135.83,135.81,23.194]
[1726107325426,0.2147085,135.83,135.82,6.6264]
[1726107325821,0.2147085,135.83,135.81,16.5672]
[1726107326723,0.2147085,135.83,135.82,8.09860833]
[1726107327924,0.2147085,135.83,135.82,6.6264]
[1726107328120,0.2147085,135.83,135.81,23.194]
[1726107328640,0.2147085,135.83,135.82,6.6264]
[1726107329350,0.2147085,135.83,135.81,23.194]
[1726107329544,0.2147085,135.83,135.81,16.5672]
[1726107330836,0.2147085,135.83,135.81,23.1941]
[1726107331031,0.2147085,135.83,135.82,6.6264]
[1726107331234,0.2147085,135.83,135.82,8.0967463]
[1726107332271,0.3638741,135.88,135.87,6.6239]
[1726107332765,0.3638741,135.88,135.87,8.09370521]
[1726107332923,0.3638741,135.88,135.87,6.6239]
[1726107334524,0.3638741,135.88,135.86,23.1846]
[1726107334852,0.3638741,135.88,135.87,6.6239]
[1726107335032,0.3638741,135.88,135.86,23.1846]
[1726107335744,0.3638741,135.88,135.87,6.6239]
[1726107336830,0.3638741,135.88,135.86,16.5602]
[1726107337027,0.3638741,135.88,135.87,8.0810342]
[1726107337233,0.3638741,135.88,135.87,6.6239]
[1726107342743,0.3638741,135.88,135.87,30.400784]
[1726107343042,0.3638741,135.88,135.87,6.6239]
[1726107347740,0.3638741,135.88,135.87,30.400784]
[1726107348575,0.3638741,135.88,135.87,6.6239]
[1726107353676,0.3638741,135.88,135.87,30.400784]
[1726107353980,7.62331834,135.96,135.92,6.6214]
[1726107354189,8.57041984,135.96,135.92,6.6214]
[1726107356788,8.57041984,135.96,135.93,6.6209]
[1726107357668,8.57041984,135.96,135.95,6.62]
[1726107357974,0.9471015,135.96,135.95,6.62]
[1726107359071,0.9471015,135.96,135.95,7.02471157]
[1726107359256,0.9471015,135.96,135.95,6.62]
[1726107359458,0.9471015,135.96,135.95,7.02456301]
[1726107360166,0.9471015,135.96,135.95,7.02455463]
[1726107360373,0.9471015,135.96,135.95,30.396884]
[1726107360678,0.9471015,135.96,135.95,6.62]
[1726107363257,0.9471015,135.96,135.95,30.396884]
[1726107364267,0.9471015,135.96,135.95,6.62]
[1726107365195,0.9471015,135.96,135.95,7.90812859]
[1726107365670,0.9471015,135.96,135.95,31.68501259]
[1726107365871,0.9471015,135.96,135.95,30.396884]
[1726107366083,0.9471015,135.96,135.95,6.62]
[1726107366681,0.9471015,135.96,135.94,6.6205]
[1726107367164,0.9471015,135.96,135.93,16.5517]
[1726107367165,7.4792015,135.96,135.93,16.5517]
[1726107367558,7.4792015,135.96,135.93,23.1725]
[1726107367757,7.4792015,135.96,135.93,16.5517]
[1726107368366,0.9471015,135.96,135.95,6.62]
[1726107369888,0.9471015,135.96,135.94,6.6205]
[1726107370190,0.9471015,135.96,135.93,23.1723]
[1726107372882,0.9471015,135.96,135.95,6.62]
[1726107373197,0.9471015,135.96,135.94,6.6205]
[1726107373498,0.9471015,135.96,135.95,6.62]
[1726107377976,0.9471015,135.96,135.95,30.396884]
[1726107378175,0.9471015,135.96,135.95,67.34886048]
[1726107378403,0.9471015,135.96,135.95,67.99573934]
[1726107378887,0.2647699,136.0,135.99,23.1634]
[1726107381577,0.2647699,136.0,135.99,24.63365824]
[1726107382377,0.2647699,136.0,135.99,23.1634]
[1726107385192,0.2647699,136.0,135.99,23.65172777]
[1726107385702,0.2647699,136.0,135.99,23.1634]
[1726107386918,0.2647699,136.0,135.99,46.940284]
[1726107387099,0.2647699,136.04,136.03,23.1565]
[1726107388288,0.2647699,136.08,136.07,23.1498]
[1726107389883,0.2647699,136.08,136.07,59.555595]
[1726107390086,0.2647699,136.08,136.07,83.332479]
[1726107390795,0.2647699,136.08,136.07,59.555595]
[1726107391002,0.2647699,136.08,136.07,23.1498]
[1726107392799,0.2647699,136.08,136.07,16.5356]
[1726107393307,0.2647699,136.08,136.07,23.1498]
[1726107395305,0.2647699,136.08,136.07,16.5356]
[1726107395712,0.2647699,136.08,136.07,23.1498]
[1726107398718,0.2647699,136.08,136.07,56.221]
[1726107399023,0.2647699,136.12,136.11,23.1429]
[1726107404018,0.2647699,136.12,136.11,46.919784]
[1726107405217,0.2647699,136.12,136.11,47.73309937]
[1726107405388,1.2647699,136.2,136.15,23.1361]
[1726107406199,6.6084,136.19,136.15,16.5258]
[1726107407112,1.2647699,136.2,136.12,16.5291]
[1726107407496,0.188759,136.16,136.12,16.5291]
[1726107407801,0.188759,136.16,136.11,6.6122]
[1726107407996,6.798659,136.16,136.11,6.6122]
[1726107409128,6.798659,136.16,136.12,6.6117]
[1726107409129,0.188759,136.16,136.12,6.6117]
[1726107409624,6.798859,136.16,136.11,6.6122]
[1726107409921,6.3553,136.14,136.09,23.1459]
[1726107410113,6.3553,136.14,136.1,6.6127]
[1726107410910,6.3553,136.14,136.09,23.1457]
[1726107411101,6.3553,136.14,136.1,6.6123]
[1726107411300,12.9661,136.14,136.09,23.1461]
[1726107412921,6.6113,136.13,136.08,6.6137]
[1726107414417,6.6119,136.12,136.07,6.6142]
[1726107414616,6.6124,136.11,136.06,23.1512]
[1726107416229,6.6128,136.1,136.06,16.5365]
[1726107417101,6.6128,136.1,136.05,6.6151]
[1726107417303,7.6233778,136.12,136.04,6.6991412]
[1726107417304,6.6132,136.09,136.04,6.6991412]
[1726107417502,22.2676,136.08,136.04,0.0835412]
[1726107417723,6.5467,136.07,136.04,0.0835412]
[1726107418300,13.161,136.07,136.04,0.0835412]
[1726107418932,6.6148,136.06,136.04,0.0835412]
[1726107419133,6.5467,136.07,136.04,0.0835412]
[1726107419134,6.6152,136.05,136.04,0.0835412]
[1726107420330,6.6147,136.06,136.04,0.0835412]
[1726107420500,6.5467,136.07,136.04,0.0835412]
[1726107420709,6.5467,136.07,136.05,6.6151]
[1726107421031,6.6148,136.06,136.04,0.0835412]
[1726107421229,6.6152,136.05,136.04,0.0835412]
[1726107422005,6.6171,136.01,136.0,0.2723002]
[1726107422206,22.2825,136.01,136.0,0.2723002]
[1726107422427,28.7285,136.01,136.0,0.2723002]
[1726107423104,22.1114,136.01,136.0,0.2723002]
[1726107424631,28.7285,136.01,136.0,0.2723002]
[1726107425020,36.36008072,136.01,136.0,0.2723002]
[1726107425223,60.13696472,136.01,136.0,0.2723002]
[1726107425914,29.74298072,136.01,136.0,0.2723002]